fUST/lending_fUST_20251112
["ID","MTS","AMOUNT","RATE_DAILY","PERIOD"]
[393716210,1762944648700,-151.0,0.00022384,3]
[393716212,1762944648709,-151.0,0.00022384,3]
[393716214,1762944648718,-151.0,0.00022384,3]
[393716216,1762944648727,-151.0,0.00022384,3]
[393716218,1762944648737,-151.0,0.00022384,3]
[393716220,1762944648747,-151.0,0.00022384,3]
[393716222,1762944648756,-151.0,0.00022384,3]
[393716224,1762944648765,-155.46428534,0.00022384,3]
[393716226,1762944648774,-151.0,0.00022384,3]
[393716228,1762944648783,-587.0,0.00022429,2]
[393716230,1762944648792,-720.0,0.00022504,20]
[393716232,1762944648801,-1584.3050262,0.00022668,2]
[393716234,1762944648811,-1000.0,0.00022673,2]
[393716236,1762944648820,-1000.0,0.00022673,2]
[393716238,1762944648829,-1000.0,0.00022673,2]
[393716240,1762944648839,-1000.0,0.00022673,2]
[393716242,1762944648851,-505.40395855,0.00022673,2]
[393716244,1762944648861,-913.52484935,0.00022719,2]
[393716246,1762944648870,-1000.0,0.00022719,2]
[393716248,1762944648879,-1000.0,0.00022719,2]
[393716250,1762944648890,-1000.0,0.0002276,2]
[393716252,1762944648899,-500.0,0.0002276,2]
[393716254,1762944648909,-1000.0,0.0002276,2]
[393716256,1762944648918,-523.06834137,0.0002276,2]
[393716258,1762944648930,-1000.0,0.00022788,2]
[393716260,1762944648939,-273.04588977,0.000228,2]
[393716262,1762944648948,-1000.0,0.00022803,2]
[393716264,1762944648956,-1000.0,0.00022803,2]
[393716266,1762944648966,-1000.0,0.00022803,2]
[393716268,1762944648975,-1000.0,0.00022803,2]
[393716270,1762944648984,-169.20388751,0.00022814,2]
[393716272,1762944648994,-560.0,0.00022814,2]
[393716274,1762944649003,-1500.0,0.00023221,2]
[393716276,1762944649013,-1500.0,0.00023221,2]
[393716277,1762944649022,-651.39428571,0.00023221,2]
[393716278,1762944649031,-1500.0,0.00023221,2]
[393716279,1762944649041,-962.91231556,0.00023267,2]
[393716280,1762944649050,-1500.0,0.00023267,2]
[393716281,1762944649059,-3859.7101719,0.00023282,2]
[393716282,1762944649068,-1500.0,0.00023308,2]
[393716284,1762944649077,-1500.0,0.00023308,2]
[393716286,1762944649087,-1500.0,0.00023336,2]
[393716288,1762944649095,-1500.0,0.00023351,2]
[393716290,1762944649105,-1500.0,0.00023351,2]
[393716292,1762944649115,-1524.32488412,0.00023351,2]
[393716294,1762944649124,-1500.0,0.00023351,2]
[393716296,1762944649135,-660.0,0.00023361,2]
[393716298,1762944649144,-987.0,0.00023451,2]
[393716300,1762944649153,-629.0,0.00023451,2]
[393716302,1762944649162,-2168.0,0.00023451,2]
[393716304,1762944649171,-150.0,0.00023451,2]
[393716306,1762944649180,-413.0,0.00023451,2]
[393716308,1762944649190,-1208.9747538,0.00023744,2]
[393716310,1762944649199,-1516.17204015,0.00023769,2]
[393716312,1762944649209,-2000.0,0.00023769,2]
[393716314,1762944649219,-1145.84322088,0.00023769,2]
[393716316,1762944649228,-592.8099389,0.00023793,2]
[393716318,1762944649236,-391.1554971,0.00023793,2]
[393716320,1762944649246,-300.2064069,0.00023793,2]
[393716322,1762944649255,-1070.81139116,0.00023815,2]
[393716324,1762944649264,-1099.25555679,0.00023856,2]
[393716326,1762944649273,-1869.65918081,0.00023856,2]
[393716328,1762944649283,-861.2177487,0.00023866,2]
[393716330,1762944649291,-2000.0,0.00023899,2]
[393716332,1762944649300,-151.0,0.000239,10]
[393716334,1762944649310,-552.147062,0.00023901,2]
[393716336,1762944649320,-760.0,0.00023909,2]
[393716338,1762944649329,-1724.95970446,0.00024,2]
[393716340,1762944649338,-462.6860161,0.00024,2]
[393716342,1762944649347,-150.0,0.00024,2]
[393716344,1762944649357,-9174.90156744,0.00024125,2]
[393716346,1762944649367,-16189.54584667,0.00024142,2]
[393716348,1762944649376,-73877.69871548,0.00024142,2]
[393717556,1762944886546,533.606839,0.00013699,2]
[393717560,1762945251713,205.1073,0.00032877,120]
[393717566,1762945502475,-2000.0,0.000242,7]
[393717572,1762945653102,177.8013174,0.000328,120]
[393717615,1762945831751,-499.2001561,0.0001786,2]
[393717618,1762945831768,-365.7998439,0.0001786,2]
[393717620,1762945831777,-349.283638,0.0001786,2]
[393717622,1762945831787,-194.18656674,0.00018016,2]
[393717624,1762945831796,-107.43869208,0.00018485,2]
[393717683,1762945837745,-234.23430792,0.00018485,2]
[393717685,1762945837756,-408.85912356,0.0001876,2]
[393717687,1762945837768,-369.70783089,0.0001876,2]
[393717689,1762945837780,-2230.25011991,0.0001876,2]
[393717692,1762945837794,-93.62846267,0.0001876,2]
[393717693,1762945837805,-189.20329728,0.00018855,2]
[393717697,1762945837837,-110.79670272,0.00018855,2]
[393717700,1762945837847,-300.0,0.00018855,2]
[393717701,1762945837858,-483.81532904,0.00018855,2]
[393717784,1762945840053,-16.18467096,0.00018855,2]
[393717785,1762945840063,-500.0,0.00018855,2]
[393717787,1762945840073,-500.0,0.00018855,2]
[393717788,1762945840083,-500.0,0.00018855,2]
[393717789,1762945840093,-500.0,0.00018855,2]
[393717790,1762945840102,-500.0,0.00018855,2]
[393717792,1762945840111,-194.92150562,0.00018855,2]
[393717793,1762945840121,-500.0,0.00018855,2]
[393717795,1762945840131,-649.17495185,0.00018855,2]
[393717797,1762945840140,-500.0,0.00018855,2]
[393717798,1762945840150,-500.0,0.00018855,2]
[393717799,1762945840160,-500.0,0.00018855,2]
[393717800,1762945840170,-171.38310993,0.00018855,2]
[393717801,1762945840179,-385.93528055,0.00018855,2]
[393717802,1762945840188,-500.0,0.00018855,2]
[393717803,1762945840198,-500.0,0.00018855,2]
[393717804,1762945840207,-500.0,0.00018855,2]
[393717805,1762945840216,-368.12608278,0.00018855,2]
[393717806,1762945840229,-500.0,0.00018855,2]
[393717807,1762945840238,-500.0,0.00018855,2]
[393717808,1762945840247,-500.0,0.00018855,2]
[393717809,1762945840256,-500.0,0.00018855,2]
[393717810,1762945840267,-500.0,0.00018855,2]
[393717811,1762945840277,-500.0,0.00018855,2]
[393717812,1762945840288,-500.0,0.00018855,2]
[393717813,1762945840297,-500.0,0.00018855,2]
[393717814,1762945840306,-500.0,0.00018855,2]
[393717815,1762945840316,-500.0,0.00018855,2]
[393717816,1762945840326,-500.0,0.00018855,2]
[393717817,1762945840335,-500.0,0.00018855,2]
[393717818,1762945840344,-500.0,0.00018855,2]
[393717819,1762945840353,-500.0,0.00018855,2]
[393717820,1762945840363,-500.0,0.00018855,2]
[393717821,1762945840373,-500.0,0.00018855,2]
[393717822,1762945840382,-500.0,0.00018855,2]
[393717823,1762945840392,-500.0,0.00018855,2]
[393717824,1762945840401,-500.0,0.00018855,2]
[393717825,1762945840411,-500.0,0.00018855,2]
[393717826,1762945840420,-500.0,0.00018855,2]
[393717827,1762945840429,-500.0,0.00018855,2]
[393717828,1762945840438,-500.0,0.00018855,2]
[393717829,1762945840448,-1136.48345107,0.00018856,2]
[393717830,1762945840459,-28967.21540962,0.00018856,2]
[393717856,1762945846109,-500.0,0.00018855,2]
[393717857,1762945846118,-957.7788738,0.00018856,2]
[393717858,1762946015761,9990.0,0.00032877,120]
[393717860,1762946409066,631.0,0.00032877,120]
[393717911,1762947031979,-462.022025,0.00018485,2]
[393717913,1762947031991,-298.41599185,0.00018485,2]
[393717915,1762947032003,-135.56198315,0.00018485,2]
[393717917,1762947032012,-199.82533118,0.00018532,2]
[393717918,1762947032022,-3022.80386073,0.00018655,2]
[393717919,1762947032032,-413.4225977,0.00018752,2]
[393717920,1762947032041,-500.0,0.00018752,2]
[393717921,1762947032051,-500.0,0.00018752,2]
[393717922,1762947032060,-500.0,0.00018752,2]
[393717923,1762947032070,-500.0,0.00018752,2]
[393717924,1762947032081,-500.0,0.00018752,2]
[393717925,1762947032091,-518.77610004,0.00018752,2]
[393717926,1762947032100,-500.0,0.00018752,2]
[393717927,1762947032109,-500.0,0.00018752,2]
[393717928,1762947032118,-500.0,0.00018752,2]
[393717929,1762947032127,-300.0,0.00018752,2]
[393717930,1762947032136,-290.0,0.00018752,2]
[393717931,1762947032146,-18806.26734716,0.00018753,2]
[393717932,1762947032157,-1000.0,0.00018753,2]
[393717939,1762947038093,-3266.23695963,0.00018753,2]
[393717940,1762947038103,-2357.75950196,0.00018755,2]
[393717941,1762947038112,-16892.92588081,0.00018755,2]
[393717942,1762947038122,-306.504,0.00018757,2]
[393717943,1762947038131,-326.97591637,0.00018761,2]
[393717944,1762947038141,-155.34753838,0.00018761,2]
[393717945,1762947038151,-1000.0,0.00018761,2]
[393717946,1762947038160,-1000.0,0.00018761,2]
[393717947,1762947038170,-963.12277454,0.00018761,2]
[393717948,1762947038179,-86247.14009471,0.00018762,2]
[393717949,1762947038191,-395713.07381105,0.00018762,2]
[393717963,1762947040126,-84791.27896174,0.00018762,2]
[393717966,1762947040137,-302.70319209,0.00018762,2]
[393718486,1762948009639,553.128699,0.00013699,2]
[393718534,1762948232085,-816.0,0.00016,2]
[393718536,1762948232094,-195.82882456,0.00016077,2]
[393718538,1762948232103,-175.33094561,0.00016307,2]
[393718540,1762948232112,-170.287233,0.00017689,2]
[393718542,1762948232121,-231.07801298,0.00018077,2]
[393718544,1762948232131,-278.369,0.00018289,2]
[393718546,1762948232140,-300.0,0.00018572,2]
[393718547,1762948232149,-11261.95058722,0.00018573,2]
[393718549,1762948232163,-1005.93129991,0.00018661,2]
[393718551,1762948232173,-337.62641832,0.00018661,2]
[393718553,1762948232182,-500.0,0.00018661,2]
[393718555,1762948232191,-500.0,0.00018661,2]
[393718557,1762948232201,-500.0,0.00018661,2]
[393718559,1762948232211,-370.94022805,0.00018661,2]
[393718560,1762948232220,-709414.32401336,0.00018662,2]
[393718563,1762948232234,-16932.56506074,0.00018662,2]
[393718565,1762948232245,-853.96724749,0.00018662,2]
[393718677,1762948240240,-1553.17549407,0.00018662,2]
[393718678,1762948240252,-4524.85827926,0.00018662,2]
[393718679,1762948240264,-841.52588397,0.00018662,2]
[393718680,1762948240292,-1328.49113914,0.00018662,2]
[393718690,1762948243243,-277.03095192,0.00018662,2]
[393718691,1762948243295,-418.93857618,0.00018662,2]
[393718692,1762948243404,-10944.27332232,0.00018662,2]
[393718693,1762948243415,-1656.06,0.00018662,2]
[393718694,1762948243459,-23984.71076384,0.00018662,2]
[393718700,1762948246458,-4270.07926771,0.00018662,2]
[393718701,1762948246469,-500.0,0.00018673,2]
[393718702,1762948246478,-500.0,0.00018673,2]
[393718703,1762948246487,-184.03306917,0.0001868,2]
[393718704,1762948246498,-1000.0,0.000187,2]
[393718705,1762948246507,-2281.0,0.0001886,2]
[393718706,1762948246516,-623.34312312,0.0001886,2]
[393718707,1762948246525,-302.8788636,0.000189,2]
[393718708,1762948246535,-1000.0,0.0001898,2]
[393718709,1762948246543,-987.0,0.00019003,2]
[393718710,1762948246552,-2168.0,0.00019003,2]
[393718711,1762948246561,-629.0,0.00019003,2]
[393718712,1762948246570,-1000.0,0.0001907,2]
[393718713,1762948246579,-302.8788636,0.00019089,2]
[393718714,1762948246589,-1000.0,0.0001927,2]
[393718715,1762948246598,-302.8788636,0.00019278,2]
[393718716,1762948246607,-1000.0,0.000194,2]
[393718717,1762948246615,-424.80922545,0.00019467,2]
[393718718,1762948246624,-1000.0,0.000196,2]
[393718719,1762948246633,-450.22789938,0.0002,2]
[393718720,1762948246642,-160.83362038,0.0002,2]
[393718721,1762948246652,-266.3272014,0.00020077,2]
[393718722,1762948246661,-553.128699,0.00020187,2]
[393718723,1762948246671,-420.0,0.00020252,2]
[393718724,1762948246679,-1000.0,0.00020421,2]
[393718725,1762948246689,-785.38515634,0.00020745,2]
[393718726,1762948246699,-160.0,0.00020919,2]
[393718727,1762948246708,-400.18833243,0.00020919,2]
[393718728,1762948246717,-304.720925,0.00021571,2]
[393718729,1762948246726,-983.0,0.00022003,2]
[393718730,1762948246735,-2168.0,0.00022003,2]
[393718731,1762948246744,-629.0,0.00022003,2]
[393718732,1762948246754,-301.57638982,0.00022077,2]
[393718733,1762948246762,-500.0,0.00022085,2]
[393718734,1762948246771,-587.0,0.00022085,2]
[393718735,1762948246780,-300.2064069,0.000221,2]
[393718736,1762948246790,-300.2064069,0.000221,2]
[393718737,1762948246799,-300.2064069,0.000221,2]
[393718738,1762948246808,-500.0,0.000221,2]
[393718739,1762948246818,-304.720925,0.00022384,3]
[393718740,1762948246827,-1000.0,0.00022648,2]
[393718741,1762948246836,-304.720925,0.00022913,3]
[393718742,1762948246844,-758.70310856,0.00023196,2]
[393718743,1762948246853,-175.50627655,0.00023216,2]
[393718744,1762948246862,-304.720925,0.00023442,3]
[393718745,1762948246871,-304.720925,0.00023972,3]
[393718746,1762948246880,-336.82557824,0.00024077,2]
[393718747,1762948246889,-823.0,0.00024083,2]
[393718748,1762948246898,-144571.48010679,0.00024142,2]
[393718749,1762948246907,-500.0,0.00024173,2]
[393718750,1762948246916,-500.0,0.00024173,2]
[393718751,1762948246925,-500.51415149,0.00024173,2]
[393718752,1762948246934,-500.0,0.00024173,2]
[393718753,1762948246943,-500.0,0.00024173,2]
[393718754,1762948246952,-500.0,0.00024173,2]
[393718755,1762948246961,-500.0,0.00024173,2]
[393718756,1762948246970,-511.4847945,0.00024173,2]
[393718757,1762948246978,-500.0,0.00024173,2]
[393718758,1762948246987,-500.4022141,0.00024173,2]
[393718759,1762948246996,-425.07135283,0.00024173,2]
[393718760,1762948247005,-377.40504208,0.00024173,2]
[393718761,1762948247014,-500.0,0.00024173,2]
[393718762,1762948247023,-502.66007069,0.00024173,2]
[393718763,1762948247032,-500.0,0.00024173,2]
[393718764,1762948247041,-501.15877118,0.00024173,2]
[393718765,1762948247050,-562.24746314,0.00024173,2]
[393718766,1762948247059,-500.0,0.00024173,2]
[393718767,1762948247068,-500.0,0.00024173,2]
[393718768,1762948247077,-160.0,0.00024194,2]
[393718769,1762948247086,-5149.49,0.000242,7]
[393718770,1762948247095,-411.71,0.000242,7]
[393718771,1762948247104,-81087.80957758,0.00024501,3]
[393718772,1762948247114,-304.720925,0.00024501,3]
[393718773,1762948247123,-161.950254,0.00024501,3]
[393718774,1762948247132,-151.0,0.00024501,7]
[393718775,1762948247141,-151.0,0.00024501,7]
[393718776,1762948247151,-534.867574,0.00024521,2]
[393718777,1762948247165,-150.0,0.00024573,2]
[393718778,1762948247174,-300.2064069,0.00024573,2]
[393718779,1762948247184,-300.2064069,0.00024573,2]
[393718780,1762948247193,-300.2064069,0.00024573,2]
[393718781,1762948247205,-600.0,0.00024624,20]
[393718782,1762948247214,-70781.81871353,0.0002465,2]
[393718783,1762948247223,-160.0,0.00024658,7]
[393718784,1762948247233,-151.0,0.00024658,7]
[393718785,1762948247243,-157.30481,0.00024658,7]
[393718786,1762948247252,-151.948299,0.00024658,7]
[393718787,1762948247261,-151.0,0.00024658,7]
[393718788,1762948247271,-151.0,0.00024658,7]
[393718789,1762948247280,-151.0,0.00024658,7]
[393718790,1762948247290,-151.0,0.00024658,7]
[393718791,1762948247299,-299.98,0.00024658,7]
[393718792,1762948247309,-152.4943,0.00024658,7]
[393718793,1762948247318,-197.271834,0.00024658,7]
[393718794,1762948247329,-154.072783,0.00024658,7]
[393718795,1762948247339,-162.607212,0.00024658,7]
[393718796,1762948247349,-151.0,0.00024658,7]
[393718797,1762948247359,-153.910969,0.00024658,7]
[393718798,1762948247369,-151.0,0.00024658,7]
[393718799,1762948247378,-160.9438,0.00024658,7]
[393718800,1762948247388,-153.150861,0.00024658,7]
[393718801,1762948247400,-280.0,0.00024658,2]
[393718802,1762948247419,-287.652741,0.00024658,7]
[393718803,1762948247439,-154.419699,0.00024658,7]
[393718804,1762948247448,-152.993589,0.00024658,7]
[393718805,1762948247458,-151.0,0.00024658,7]
[393718806,1762948247467,-151.0,0.00024658,7]
[393718807,1762948247477,-151.0,0.00024658,2]
[393718808,1762948247487,-151.0,0.00024658,7]
[393718809,1762948247496,-151.356279,0.00024658,7]
[393718810,1762948247506,-500.0,0.00024658,2]
[393718811,1762948247515,-304.720925,0.00024661,2]
[393718812,1762948247524,-500.0,0.00024713,2]
[393718813,1762948247533,-1000.0,0.00024721,2]
[393718814,1762948247542,-1000.0,0.00024721,2]
[393718815,1762948247552,-1000.0,0.00024721,2]
[393718816,1762948247561,-440.63772601,0.00024721,2]
[393718817,1762948247570,-952.23997508,0.00024721,2]
[393718818,1762948247579,-1000.0,0.00024721,2]
[393718819,1762948247588,-517.70334212,0.00024721,2]
[393718820,1762948247597,-500.0,0.00024721,2]
[393718821,1762948247607,-1000.0,0.00024721,2]
[393718822,1762948247617,-260.0,0.00024742,2]
[393718823,1762948247626,-500.0,0.00024768,2]
[393718824,1762948247635,-16737.22416821,0.00024774,2]
[393718825,1762948247646,-151.0,0.00024774,7]
[393718826,1762948247654,-151.0,0.00024774,7]
[393718827,1762948247663,-151.0,0.00024774,7]
[393718828,1762948247673,-267.531873,0.00024774,7]
[393718829,1762948247682,-243.5288269,0.00024774,7]
[393718830,1762948247691,-151.0,0.00024774,7]
[393718831,1762948247700,-151.0,0.00024774,7]
[393718832,1762948247708,-156.01345,0.00024774,7]
[393718833,1762948247717,-151.0,0.00024774,2]
[393718834,1762948247726,-151.0,0.00024774,7]
[393718835,1762948247735,-151.0,0.000248,7]
[393718836,1762948247744,-151.0,0.000248,7]
[393718837,1762948247753,-39045.3615506,0.000248,2]
[393718838,1762948247763,-500.0,0.00024822,2]
[393718839,1762948247772,-500.0,0.00024877,2]
[393718840,1762948247781,-151.0,0.000249,7]
[393718841,1762948247790,-151.0,0.000249,7]
[393718842,1762948247799,-151.0,0.000249,7]
[393718843,1762948247808,-151.0,0.000249,7]
[393718844,1762948247817,-259.85311,0.000249,7]
[393718845,1762948247826,-512905.684349,0.000249,2]
[393718846,1762948247835,-151.764621,0.000249,2]
[393718847,1762948247844,-259.728985,0.000249,7]
[393718848,1762948247853,-500.0,0.00024932,2]
[393718849,1762948247862,-478.95023784,0.00024987,2]
[393718850,1762948247871,-33858.84563059,0.00025,2]
[393718851,1762948247880,-35686.80439515,0.00025,2]
[393718852,1762948247889,-2168.0,0.00025003,2]
[393718853,1762948247898,-629.0,0.00025003,2]
[393718854,1762948247905,-300.0,0.00025121,2]
[393718855,1762948247915,-1063.01408117,0.00025268,2]
[393718856,1762948247924,-511.49505023,0.00025268,2]
[393718857,1762948247934,-510.03567499,0.00025268,2]
[393718858,1762948247944,-1009.18458915,0.00025268,2]
[393718859,1762948247954,-1500.0,0.00025268,2]
[393718860,1762948247965,-360.0,0.0002529,2]
[393718861,1762948247975,-150.8134716,0.00025668,2]
[393718862,1762948247984,-11261.9505872,0.00025737,2]
[393718863,1762948247993,-2000.0,0.00025816,2]
[393718864,1762948248002,-460.0,0.00025838,2]
[393718865,1762948248011,-372.07476666,0.00026077,2]
[393718866,1762948248020,-1152.0,0.00026262,2]
[393718867,1762948248029,-151.0,0.00026282,7]
[393718868,1762948248039,-151.0,0.00026282,7]
[393718869,1762948248048,-151.0,0.00026282,7]
[393718870,1762948248057,-151.0,0.00026282,7]
[393718871,1762948248067,-860.91942769,0.00026364,2]
[393718872,1762948248076,-560.0,0.00026386,2]
[393718873,1762948248085,-411.71,0.000265,7]
[393718874,1762948248094,-553.128699,0.00026676,2]
[393718875,1762948248112,-349.283638,0.0002679,2]
[393718876,1762948248122,-7149.49,0.000269,7]
[393718877,1762948248131,-660.0,0.00026934,2]
[393718878,1762948248140,-720.0,0.00027086,30]
[393718879,1762948248150,-150.0,0.00027397,2]
[393718880,1762948248163,-300.0,0.00027397,2]
[393718881,1762948248173,-450.0,0.00027397,2]
[393718882,1762948248183,-600.0,0.00027397,2]
[393718883,1762948248193,-750.0,0.00027397,2]
[393718884,1762948248203,-814.78103449,0.00027397,2]
[393718885,1762948248212,-3062.72,0.00027397,30]
[393718886,1762948248221,-1094.74,0.000274,2]
[393718887,1762948248231,-760.0,0.00027482,2]
[393718888,1762948248240,-3000.0,0.000277,2]
[393718889,1762948248248,-3000.0,0.0002771,2]
[393718890,1762948248258,-3000.0,0.0002772,2]
[393718891,1762948248267,-3000.0,0.0002773,2]
[393718892,1762948248276,-3000.0,0.0002774,2]
[393718893,1762948248286,-3000.0,0.0002775,2]
[393718894,1762948248296,-304.720925,0.00027751,2]
[393718895,1762948248305,-3000.0,0.0002776,2]
[393718896,1762948248315,-3000.0,0.0002777,2]
[393718897,1762948248324,-3000.0,0.0002778,2]
[393718898,1762948248334,-3000.0,0.0002779,2]
[393718899,1762948248343,-3000.0,0.000278,2]
[393718900,1762948248352,-3000.0,0.0002781,2]
[393718901,1762948248446,-3000.0,0.0002782,2]
[393718902,1762948248459,-3764.840973,0.0002783,2]
[393718903,1762948248470,-788.5999956,0.00027846,30]
[393718904,1762948248481,-350.8108609,0.00027861,30]
[393718905,1762948248490,-2168.0,0.00028003,2]
[393718906,1762948248500,-629.0,0.00028003,2]
[393718907,1762948248510,-460.0,0.0002803,2]
[393718908,1762948248519,-407.32395508,0.00028077,2]
[393718909,1762948248528,-162.36131816,0.00028411,14]
[393718910,1762948248537,-1613.0,0.00028638,2]
[393718911,1762948248546,-164.1285603,0.00028678,30]
[393718912,1762948248555,-164.1285603,0.00028678,30]
[393718913,1762948248564,-164.1285603,0.00028678,30]
[393718914,1762948248574,-164.1285603,0.00028678,30]
[393718915,1762948248583,-164.1285603,0.00028678,30]
[393718916,1762948248592,-164.1285603,0.00028678,30]
[393718917,1762948248602,-327.6456208,0.000295,30]
[393718918,1762948248612,-164.1285603,0.000295,30]
[393718919,1762948248622,-864.0,0.00029795,30]
[393718920,1762948248631,-14334.93135011,0.0003,2]
[393718921,1762948248641,-411.71,0.0003,7]
[393718922,1762948248650,-442.5731435,0.00030077,2]
[393718923,1762948248660,-7149.49,0.000304,7]
[393718924,1762948248669,-151.0,0.000304,31]
[393718925,1762948248678,-151.0,0.000304,31]
[393718926,1762948248688,-151.0,0.000304,31]
[393718927,1762948248698,-304.720925,0.00030841,2]
[393718928,1762948248709,-161.950254,0.00030841,2]
[393718929,1762948248719,-250.0,0.00031,2]
[393718930,1762948248729,-2160.0,0.00031003,2]
[393718931,1762948248739,-621.0,0.00031003,2]
[393718932,1762948248748,-164.0312576,0.00031134,30]
[393718933,1762948248757,-164.1285603,0.00031134,30]
[393718934,1762948248767,-164.1285603,0.00031134,30]
[393718935,1762948248776,-163.8366522,0.00031134,30]
[393718936,1762948248786,-160.0,0.00031142,3]
[393718937,1762948248795,-166.0,0.00031229,2]
[393718938,1762948248804,-300.2064069,0.00031233,30]
[393718939,1762948248814,-311.4136626,0.00031233,30]
[393718940,1762948248823,-170.287233,0.00031388,60]
[393718941,1762948248832,-650.7725868,0.00032055,30]
[393718942,1762948248841,-160.0,0.00032055,4]
[393718943,1762948248850,-477.82233192,0.00032077,2]
[393718944,1762948248859,-150.48,0.00032216,30]
[393718945,1762948248868,-1094.74,0.000323,2]
[393718946,1762948248879,-1000.0,0.00032774,30]
[393718947,1762948248890,-150.0,0.000328,2]
[393718948,1762948248901,-151.0,0.000328,14]
[393718949,1762948248910,-151.0,0.00032839,14]
[393718950,1762948248919,-1100.0,0.00032877,120]
[393718951,1762948248928,-1100.0,0.00032877,120]
[393718952,1762948248937,-1100.0,0.00032877,120]
[393718953,1762948248947,-1100.0,0.00032877,120]
[393718954,1762948248957,-1100.0,0.00032877,120]
[393718955,1762948248967,-151.82468821,0.00032877,14]
[393718956,1762948248976,-190.05388871,0.000329,120]
[393718957,1762948248985,-160.60520739,0.000329,120]
[393718958,1762948248994,-160.76714737,0.000329,120]
[393718959,1762948249003,-248.00058362,0.000329,120]
[393718960,1762948249012,-199.84205756,0.000329,120]
[393718961,1762948249021,-232.62781769,0.000329,120]
[393718962,1762948249031,-11261.9505872,0.000329,2]
[393718963,1762948249040,-160.0,0.00032968,5]
[393718964,1762948249049,-3999.999997,0.00033,30]
[393718965,1762948249059,-60243.01490188,0.00033,10]
[393718966,1762948249068,-160.0,0.00033,10]
[393718967,1762948249077,-304.720925,0.00033,10]
[393718968,1762948249087,-304.720925,0.00033062,10]
[393718969,1762948249095,-200.0,0.000331,7]
[393718970,1762948249105,-304.720925,0.00033125,10]
[393718971,1762948249114,-199.0,0.0003315,14]
[393718972,1762948249123,-1000.0,0.00033151,120]
[393718973,1762948249132,-553.128699,0.00033165,2]
[393718974,1762948249141,-304.720925,0.00033188,10]
[393718975,1762948249150,-623.75358683,0.000332,117]
[393718976,1762948249164,-304.720925,0.0003325,10]
[393718977,1762948249174,-161.950254,0.0003325,10]
[393718978,1762948249183,-1000.0,0.00033425,120]
[393718979,1762948249193,-8599.03796683,0.000335,2]
[393718980,1762948249203,-200.0,0.0003351,7]
[393718981,1762948249212,-160.0,0.000336,30]
[393718982,1762948249221,-199.0,0.00033698,15]
[393718983,1762948249233,-1000.0,0.00033699,120]
[393718984,1762948249242,-300.96,0.0003375,30]
[393718985,1762948249251,-160.0,0.00033882,6]
[393718986,1762948249261,-190.05388871,0.000339,120]
[393718987,1762948249271,-411.71,0.000339,7]
[393718988,1762948249280,-304.720925,0.00033931,2]
[393718989,1762948249290,-161.950254,0.00033931,2]
[393718990,1762948249299,-1000.0,0.00033973,120]
[393718991,1762948249309,-7149.49,0.00034,14]
[393718992,1762948249318,-513.07152034,0.00034077,120]
[393718993,1762948249328,-200.0,0.000341,7]
[393718994,1762948249337,-600.0,0.00034191,2]
[393718995,1762948249347,-199.0,0.00034246,16]
[393718996,1762948249356,-1000.0,0.00034247,120]
[393718997,1762948249366,-1094.74,0.000345,14]
[393718998,1762948249376,-891.2794576,0.00034521,30]
[393718999,1762948249386,-1000.0,0.00034521,120]
[393719000,1762948249395,-600.0,0.00034548,2]
[393719001,1762948249405,-199.0,0.00034794,17]
[393719002,1762948249414,-1000.0,0.00034795,120]